[Event "Titled Tuesday Blitz December 20 Early 2022"]
[White "Benamar, Benious"]
[Black "Battlecruiser_Operational"]
[WhiteFideId "45118841"]
[WhiteElo "1136"]
[BlackElo "2428"]
[Result "0-1"]
[Round "08"]
[TimeControl "180+2"]
[Date "2022.12.20"]
[WhiteClock "0:00:03"]
[BlackClock "0:00:04"]

1. d4 {[%clk 0:03:00]}  e6 {[%clk 0:02:56]} 2. Nf3 {[%clk 0:03:00]}  f5 {[%clk 0:02:56]} 3. Bf4 {[%clk 0:02:59]}  Nf6 {[%clk 0:02:56]} 4. e3 {[%clk 0:02:59]}  Be7 {[%clk 0:02:55]} 5. h3 {[%clk 0:02:59]}  b6 {[%clk 0:02:52]} 6. Be2 {[%clk 0:03:00]}  Bb7 {[%clk 0:02:52]} 7. O-O {[%clk 0:03:00]}  O-O {[%clk 0:02:52]} 8. a4 {[%clk 0:02:59]}  a5 {[%clk 0:02:51]} 9. Nbd2 {[%clk 0:02:57]}  h6 {[%clk 0:02:48]} 10. Bh2 {[%clk 0:02:57]}  d6 {[%clk 0:02:40]} 11. c3 {[%clk 0:02:56]}  Kh8 {[%clk 0:02:32]} 12. Qb3 {[%clk 0:02:53]}  Qc8 {[%clk 0:02:04]} 13. Bc4 {[%clk 0:02:35]}  Bd5 {[%clk 0:02:03]} 14. Bxd5 {[%clk 0:02:33]}  Nxd5 {[%clk 0:02:01]} 15. Rfe1 {[%clk 0:02:31]}  Nd7 {[%clk 0:01:46]} 16. e4 {[%clk 0:02:13]}  fxe4 {[%clk 0:01:44]} 17. Rxe4 {[%clk 0:02:14]}  N7f6 {[%clk 0:01:40]} 18. Re2 {[%clk 0:02:13]}  Nh5 {[%clk 0:01:37]} 19. Rae1 {[%clk 0:02:02]}  Nhf4 {[%clk 0:01:36]} 20. Bxf4 {[%clk 0:02:02]}  Nxf4 {[%clk 0:01:35]} 21. Re3 {[%clk 0:01:48]}  Rf6 {[%clk 0:01:31]} 22. g3 {[%clk 0:01:39]}  Nd5 {[%clk 0:01:18]} 23. R3e2 {[%clk 0:01:24]}  Qd7 {[%clk 0:01:15]} 24. Qb5 {[%clk 0:01:18]}  c6 {[%clk 0:01:12]} 25. Qd3 {[%clk 0:01:16]}  Raf8 {[%clk 0:01:09]} 26. Nh4 {[%clk 0:01:10]}  Kg8 {[%clk 0:00:52]} 27. Qe4 {[%clk 0:00:52]}  Qe8 {[%clk 0:00:43]} 28. Qg4 {[%clk 0:00:45]}  h5 {[%clk 0:00:33]} 29. Qe4 {[%clk 0:00:38]}  Qf7 {[%clk 0:00:31]} 30. Rf1 {[%clk 0:00:18]}  g5 {[%clk 0:00:16]} 31. Ng2 {[%clk 0:00:18]}  Qg7 {[%clk 0:00:12]} 32. Qd3 {[%clk 0:00:12]}  Qf7 {[%clk 0:00:10]} 33. Qc4 {[%clk 0:00:11]}  Qg6 {[%clk 0:00:10]} 34. Qxc6 {[%clk 0:00:08]}  Qd3 {[%clk 0:00:10]} 35. Qc4 {[%clk 0:00:07]}  Qf5 {[%clk 0:00:07]} 36. Ne4 {[%clk 0:00:06]}  Qxh3 {[%clk 0:00:05]} 37. Nxf6+ {[%clk 0:00:05]}  Rxf6 {[%clk 0:00:06]} 38. Rfe1 {[%clk 0:00:02]}  Kf7 {[%clk 0:00:06]} 39. Qd3 {[%clk 0:00:03]}  Kg7 {[%clk 0:00:04]} 40. Rxe6 {[%clk 0:00:02]}  Rxe6 {[%clk 0:00:04]} 41. Rxe6 {[%clk 0:00:03]}  Qxe6 {[%clk 0:00:05]} 42. Qf1 {[%clk 0:00:03]}  g4 {[%clk 0:00:04]} 43. c4 {[%clk 0:00:02]}  Nf6 {[%clk 0:00:04]} 44. Nf4 {[%clk 0:00:03]}  Qe4 {[%clk 0:00:04]} 45. Qd1 {[%clk 0:00:02]}  Kh6 {[%clk 0:00:04]} 46. Qb3 {[%clk 0:00:02]}  Nh7 {[%clk 0:00:04]} 47. Qxb6 {[%clk 0:00:03]}  Ng5 {[%clk 0:00:04]} 48. c5 {[%clk 0:00:02]}  Nh3+ {[%clk 0:00:04]} 49. Kh2 {[%clk 0:00:02]}  Qf3 {[%clk 0:00:04]} 50. Nxh3 {[%clk 0:00:02]}  gxh3 {[%clk 0:00:04]} 51. cxd6 {[%clk 0:00:03]}  Qg2# {[%clk 0:00:04]} 0-1


[Site "https://www.chess.com"]

[Event "Titled Tuesday Blitz December 20 Early 2022"]
[White "Bensenousi, Isk"]
[Black "AsaHoffmann"]
[WhiteFideId "4206010"]
[WhiteElo "2041"]
[BlackElo "2376"]
[Result "0-1"]
[Round "08"]
[TimeControl "180+2"]
[Date "2022.12.20"]
[WhiteClock "0:00:02"]
[BlackClock "0:01:53"]

1. e4 {[%clk 0:03:00]}  d6 {[%clk 0:02:58]} 2. d4 {[%clk 0:02:59]}  Nf6 {[%clk 0:02:58]} 3. Bd3 {[%clk 0:02:56]}  e5 {[%clk 0:02:57]} 4. c3 {[%clk 0:02:54]}  Nc6 {[%clk 0:02:55]} 5. Ne2 {[%clk 0:02:54]}  Be7 {[%clk 0:02:54]} 6. O-O {[%clk 0:02:54]}  O-O {[%clk 0:02:54]} 7. d5 {[%clk 0:02:50]}  Nb8 {[%clk 0:02:53]} 8. f4 {[%clk 0:02:50]}  exf4 {[%clk 0:02:51]} 9. Bxf4 {[%clk 0:02:49]}  Nfd7 {[%clk 0:02:51]} 10. Nd2 {[%clk 0:02:36]}  Bg5 {[%clk 0:02:50]} 11. Nf3 {[%clk 0:02:16]}  Bxf4 {[%clk 0:02:48]} 12. Nxf4 {[%clk 0:02:17]}  Qe7 {[%clk 0:02:46]} 13. Qe2 {[%clk 0:01:35]}  Ne5 {[%clk 0:02:46]} 14. Nxe5 {[%clk 0:01:35]}  Qxe5 {[%clk 0:02:34]} 15. Rae1 {[%clk 0:01:34]}  Nd7 {[%clk 0:02:33]} 16. Bc2 {[%clk 0:01:32]}  Qe7 {[%clk 0:02:29]} 17. Qh5 {[%clk 0:01:26]}  Ne5 {[%clk 0:02:27]} 18. Nd3 {[%clk 0:01:21]}  Bg4 {[%clk 0:02:21]} 19. Nxe5 {[%clk 0:00:15]}  Bxh5 {[%clk 0:02:18]} 20. Nc4 {[%clk 0:00:15]}  f6 {[%clk 0:02:13]} 21. Ne3 {[%clk 0:00:14]}  Bg6 {[%clk 0:02:12]} 22. Rf4 {[%clk 0:00:13]}  Rfe8 {[%clk 0:02:11]} 23. g3 {[%clk 0:00:13]}  b5 {[%clk 0:02:09]} 24. h4 {[%clk 0:00:11]}  a5 {[%clk 0:02:04]} 25. Kf2 {[%clk 0:00:08]}  b4 {[%clk 0:02:03]} 26. c4 {[%clk 0:00:08]}  a4 {[%clk 0:02:03]} 27. Bb1 {[%clk 0:00:06]}  Qe5 {[%clk 0:01:57]} 28. Re2 {[%clk 0:00:06]}  a3 {[%clk 0:01:56]} 29. b3 {[%clk 0:00:03]}  Qd4 {[%clk 0:01:55]} 30. g4 {[%clk 0:00:02]}  Bxe4 {[%clk 0:01:53]} 0-1


[Site "https://www.chess.com"]

[Event "Titled Tuesday Blitz December 20 Early 2022"]
[White "BlueWizzard"]
[Black "Aygehovit1992"]
[WhiteElo "2862"]
[BlackElo "2682"]
[Result "1-0"]
[Round "08"]
[TimeControl "180+2"]
[Date "2022.12.20"]
[WhiteClock "0:00:15"]
[BlackClock "0:00:07"]

1. d4 {[%clk 0:03:00]}  Nf6 {[%clk 0:03:00]} 2. Nc3 {[%clk 0:03:01]}  d5 {[%clk 0:03:00]} 3. Bg5 {[%clk 0:02:58]}  Bf5 {[%clk 0:02:54]} 4. Nf3 {[%clk 0:02:58]}  e6 {[%clk 0:02:54]} 5. Nh4 {[%clk 0:02:56]}  Bg6 {[%clk 0:02:51]} 6. e3 {[%clk 0:02:55]}  c5 {[%clk 0:02:50]} 7. Bb5+ {[%clk 0:02:40]}  Nc6 {[%clk 0:02:50]} 8. Qd2 {[%clk 0:02:37]}  Rc8 {[%clk 0:02:49]} 9. a3 {[%clk 0:02:33]}  Qb6 {[%clk 0:02:44]} 10. Nxg6 {[%clk 0:02:32]}  hxg6 {[%clk 0:02:44]} 11. O-O {[%clk 0:02:27]}  a6 {[%clk 0:02:32]} 12. Bxc6+ {[%clk 0:02:26]}  Qxc6 {[%clk 0:02:33]} 13. Rad1 {[%clk 0:02:06]}  b5 {[%clk 0:02:07]} 14. Bxf6 {[%clk 0:02:04]}  gxf6 {[%clk 0:02:07]} 15. e4 {[%clk 0:02:04]}  b4 {[%clk 0:01:45]} 16. Ne2 {[%clk 0:01:51]}  dxe4 {[%clk 0:01:42]} 17. dxc5 {[%clk 0:01:43]}  Bxc5 {[%clk 0:01:43]} 18. axb4 {[%clk 0:01:40]}  Bb6 {[%clk 0:01:32]} 19. h3 {[%clk 0:01:21]}  f5 {[%clk 0:01:26]} 20. c4 {[%clk 0:01:13]}  O-O {[%clk 0:01:09]} 21. c5 {[%clk 0:01:12]}  Bc7 {[%clk 0:01:09]} 22. Qc3 {[%clk 0:00:57]}  Rfd8 {[%clk 0:01:04]} 23. h4 {[%clk 0:00:50]}  e5 {[%clk 0:00:37]} 24. h5 {[%clk 0:00:42]}  gxh5 {[%clk 0:00:33]} 25. Qh3 {[%clk 0:00:42]}  Qg6 {[%clk 0:00:33]} 26. Ng3 {[%clk 0:00:42]}  f4 {[%clk 0:00:25]} 27. Nf5 {[%clk 0:00:41]}  Kh7 {[%clk 0:00:16]} 28. Ne7 {[%clk 0:00:39]}  Qg4 {[%clk 0:00:16]} 29. Nxc8 {[%clk 0:00:24]}  Rxd1 {[%clk 0:00:15]} 30. Qxg4 {[%clk 0:00:25]}  Rxf1+ {[%clk 0:00:15]} 31. Kxf1 {[%clk 0:00:26]}  hxg4 {[%clk 0:00:15]} 32. c6 {[%clk 0:00:20]}  Kg6 {[%clk 0:00:12]} 33. Ne7+ {[%clk 0:00:21]}  Kg5 {[%clk 0:00:09]} 34. Nd5 {[%clk 0:00:22]}  Bd6 {[%clk 0:00:08]} 35. c7 {[%clk 0:00:22]}  Bxc7 {[%clk 0:00:08]} 36. Nxc7 {[%clk 0:00:23]}  Kf5 {[%clk 0:00:07]} 37. Nxa6 {[%clk 0:00:18]}  Ke6 {[%clk 0:00:07]} 38. b5 {[%clk 0:00:16]}  Kd7 {[%clk 0:00:07]} 39. Nc5+ {[%clk 0:00:15]} 1-0


[Site "https://www.chess.com"]

[Event "Titled Tuesday Blitz December 20 Early 2022"]
[White "Brunstein, Sandrine"]
[Black "vovachesss"]
[WhiteFideId "625574"]
[WhiteElo "1990"]
[BlackElo "2756"]
[Result "0-1"]
[Round "08"]
[TimeControl "180+2"]
[Date "2022.12.20"]
[WhiteClock "0:00:02"]
[BlackClock "0:00:10"]

1. d4 {[%clk 0:03:00]}  d5 {[%clk 0:02:54]} 2. Nf3 {[%clk 0:03:00]}  Nf6 {[%clk 0:02:53]} 3. c4 {[%clk 0:03:00]}  c6 {[%clk 0:02:53]} 4. Nc3 {[%clk 0:03:00]}  dxc4 {[%clk 0:02:53]} 5. e4 {[%clk 0:02:59]}  b5 {[%clk 0:02:53]} 6. Be2 {[%clk 0:02:59]}  Bg4 {[%clk 0:02:53]} 7. a4 {[%clk 0:02:52]}  b4 {[%clk 0:02:46]} 8. e5 {[%clk 0:02:53]}  bxc3 {[%clk 0:02:12]} 9. exf6 {[%clk 0:02:53]}  cxb2 {[%clk 0:02:12]} 10. fxg7 {[%clk 0:02:20]}  bxa1=Q {[%clk 0:02:11]} 11. gxh8=Q {[%clk 0:02:20]}  Qa5+ {[%clk 0:01:52]} 12. Kf1 {[%clk 0:02:07]}  Nd7 {[%clk 0:01:32]} 13. Qxh7 {[%clk 0:01:47]}  Q5xa4 {[%clk 0:01:11]} 14. Qxa4 {[%clk 0:01:41]}  Qxa4 {[%clk 0:01:12]} 15. h3 {[%clk 0:01:36]}  Qa1 {[%clk 0:00:49]} 16. Qc2 {[%clk 0:00:48]}  Rb8 {[%clk 0:00:49]} 17. Nd2 {[%clk 0:00:33]}  Bxe2+ {[%clk 0:00:44]} 18. Kxe2 {[%clk 0:00:33]}  c3 {[%clk 0:00:43]} 19. Ne4 {[%clk 0:00:29]}  Qa6+ {[%clk 0:00:29]} 20. Qd3 {[%clk 0:00:26]}  Qa2+ {[%clk 0:00:29]} 21. Kf3 {[%clk 0:00:22]}  Qd5 {[%clk 0:00:24]} 22. Ke2 {[%clk 0:00:05]}  Qa2+ {[%clk 0:00:13]} 23. Kf3 {[%clk 0:00:05]}  Rb5 {[%clk 0:00:13]} 24. g4 {[%clk 0:00:04]}  Qd5 {[%clk 0:00:13]} 25. Kg2 {[%clk 0:00:02]}  Nc5 {[%clk 0:00:10]} 0-1


[Site "https://www.chess.com"]

[Event "Titled Tuesday Blitz December 20 Early 2022"]
[White "CDOEspiao"]
[Black "Alibaev, Akbar"]
[BlackFideId "14200325"]
[WhiteElo "2486"]
[BlackElo "2295"]
[Result "0-1"]
[Round "08"]
[TimeControl "180+2"]
[Date "2022.12.20"]
[WhiteClock "0:00:03"]
[BlackClock "0:01:00"]

1. Nf3 {[%clk 0:02:58]}  Nf6 {[%clk 0:02:59]} 2. g3 {[%clk 0:02:59]}  g6 {[%clk 0:03:00]} 3. Bg2 {[%clk 0:03:00]}  Bg7 {[%clk 0:03:01]} 4. O-O {[%clk 0:03:00]}  O-O {[%clk 0:03:02]} 5. d3 {[%clk 0:03:01]}  d6 {[%clk 0:03:03]} 6. Nbd2 {[%clk 0:03:02]}  e5 {[%clk 0:03:03]} 7. e4 {[%clk 0:03:02]}  a5 {[%clk 0:03:04]} 8. a4 {[%clk 0:03:03]}  Nc6 {[%clk 0:03:04]} 9. Nc4 {[%clk 0:03:02]}  Be6 {[%clk 0:03:03]} 10. b3 {[%clk 0:03:02]}  h6 {[%clk 0:03:02]} 11. Bd2 {[%clk 0:02:57]}  Nd7 {[%clk 0:03:00]} 12. Nh4 {[%clk 0:02:39]}  Kh7 {[%clk 0:02:59]} 13. f4 {[%clk 0:02:31]}  exf4 {[%clk 0:02:58]} 14. c3 {[%clk 0:02:22]}  fxg3 {[%clk 0:02:42]} 15. hxg3 {[%clk 0:02:23]}  Nde5 {[%clk 0:02:42]} 16. Qe2 {[%clk 0:02:12]}  Bg4 {[%clk 0:02:34]} 17. Qe3 {[%clk 0:02:01]}  Bh5 {[%clk 0:02:32]} 18. d4 {[%clk 0:01:52]}  Ng4 {[%clk 0:02:30]} 19. Qd3 {[%clk 0:01:52]}  Qd7 {[%clk 0:02:17]} 20. Rae1 {[%clk 0:01:24]}  Rae8 {[%clk 0:02:09]} 21. Bc1 {[%clk 0:01:00]}  b6 {[%clk 0:01:52]} 22. Qd2 {[%clk 0:00:48]}  Ne7 {[%clk 0:01:44]} 23. Rf3 {[%clk 0:00:46]}  d5 {[%clk 0:01:42]} 24. exd5 {[%clk 0:00:34]}  Nxd5 {[%clk 0:01:40]} 25. Ref1 {[%clk 0:00:32]}  f5 {[%clk 0:01:39]} 26. Rd3 {[%clk 0:00:26]}  Rf6 {[%clk 0:01:29]} 27. Nf3 {[%clk 0:00:25]}  Rfe6 {[%clk 0:01:22]} 28. Nfe5 {[%clk 0:00:24]}  Qd8 {[%clk 0:01:13]} 29. Nxg4 {[%clk 0:00:19]}  Bxg4 {[%clk 0:01:14]} 30. Ne5 {[%clk 0:00:20]}  Bh5 {[%clk 0:01:13]} 31. c4 {[%clk 0:00:10]}  Nb4 {[%clk 0:01:04]} 32. Kh1 {[%clk 0:00:06]}  Nxd3 {[%clk 0:01:03]} 33. Nxd3 {[%clk 0:00:07]}  Re2 {[%clk 0:01:01]} 34. Qf4 {[%clk 0:00:05]}  Qxd4 {[%clk 0:01:01]} 35. Ne1 {[%clk 0:00:03]}  Rxe1 {[%clk 0:01:00]} 0-1


[Site "https://www.chess.com"]

[Event "Titled Tuesday Blitz December 20 Early 2022"]
[White "Castro Andrade, Seirbert Cristian"]
[Black "Rincon Zapatero, Alejandro"]
[WhiteFideId "3863336"]
[BlackFideId "2288850"]
[WhiteElo "1364"]
[BlackElo "1752"]
[Result "1-0"]
[Round "08"]
[TimeControl "180+2"]
[Date "2022.12.20"]
[WhiteClock "0:00:45"]
[BlackClock "0:00:04"]

1. e4 {[%clk 0:02:59]}  c5 {[%clk 0:03:00]} 2. Nf3 {[%clk 0:03:00]}  g6 {[%clk 0:03:01]} 3. d4 {[%clk 0:02:58]}  cxd4 {[%clk 0:03:01]} 4. Qxd4 {[%clk 0:02:56]}  Nf6 {[%clk 0:03:02]} 5. e5 {[%clk 0:02:57]}  Nc6 {[%clk 0:03:02]} 6. Qa4 {[%clk 0:02:56]}  Nd5 {[%clk 0:03:03]} 7. Qe4 {[%clk 0:02:45]}  Nb6 {[%clk 0:03:03]} 8. Nc3 {[%clk 0:02:44]}  Bg7 {[%clk 0:03:03]} 9. Bf4 {[%clk 0:02:45]}  d5 {[%clk 0:03:04]} 10. exd6 {[%clk 0:02:45]}  Bf5 {[%clk 0:03:04]} 11. Qe2 {[%clk 0:02:41]}  O-O {[%clk 0:03:00]} 12. dxe7 {[%clk 0:02:33]}  Nxe7 {[%clk 0:02:58]} 13. Qd2 {[%clk 0:02:33]}  Ned5 {[%clk 0:02:38]} 14. Nxd5 {[%clk 0:02:32]}  Nxd5 {[%clk 0:02:27]} 15. Bg5 {[%clk 0:02:32]}  Re8+ {[%clk 0:02:22]} 16. Be2 {[%clk 0:02:32]}  Qb6 {[%clk 0:02:05]} 17. O-O {[%clk 0:02:28]}  Qxb2 {[%clk 0:02:04]} 18. Qxd5 {[%clk 0:02:01]}  Rxe2 {[%clk 0:02:01]} 19. Rab1 {[%clk 0:01:55]}  Qxc2 {[%clk 0:01:54]} 20. Rxb7 {[%clk 0:01:55]}  Be6 {[%clk 0:01:35]} 21. Qd6 {[%clk 0:01:55]}  Bf8 {[%clk 0:01:20]} 22. Rb8 {[%clk 0:01:39]}  Rxb8 {[%clk 0:01:03]} 23. Qxb8 {[%clk 0:01:39]}  Qc8 {[%clk 0:00:53]} 24. Qxa7 {[%clk 0:01:38]}  Rxa2 {[%clk 0:00:53]} 25. Qe3 {[%clk 0:01:38]}  Bc5 {[%clk 0:00:50]} 26. Qf4 {[%clk 0:01:32]}  Qa8 {[%clk 0:00:20]} 27. Bf6 {[%clk 0:01:28]}  Qa7 {[%clk 0:00:15]} 28. Ng5 {[%clk 0:01:20]}  Qb6 {[%clk 0:00:08]} 29. h4 {[%clk 0:01:08]}  Bd6 {[%clk 0:00:05]} 30. Qf3 {[%clk 0:01:03]}  h6 {[%clk 0:00:05]} 31. Nxe6 {[%clk 0:00:53]}  fxe6 {[%clk 0:00:05]} 32. Qe4 {[%clk 0:00:53]}  Kf7 {[%clk 0:00:05]} 33. Bd4 {[%clk 0:00:53]}  Qb4 {[%clk 0:00:03]} 34. Qf3+ {[%clk 0:00:52]}  Ke7 {[%clk 0:00:03]} 35. Qf6+ {[%clk 0:00:52]}  Kd7 {[%clk 0:00:03]} 36. Qf7+ {[%clk 0:00:52]}  Kc6 {[%clk 0:00:03]} 37. Qxe6 {[%clk 0:00:49]}  Qxd4 {[%clk 0:00:03]} 38. Qxa2 {[%clk 0:00:48]}  Qxh4 {[%clk 0:00:04]} 39. Qc2+ {[%clk 0:00:47]}  Kd7 {[%clk 0:00:03]} 40. g3 {[%clk 0:00:48]}  Qh3 {[%clk 0:00:03]} 41. Qxg6 {[%clk 0:00:46]}  h5 {[%clk 0:00:04]} 42. Rd1 {[%clk 0:00:45]} 1-0


[Site "https://www.chess.com"]

[Event "Titled Tuesday Blitz December 20 Early 2022"]
[White "ChessFanNM"]
[Black "GoltsevDmitry2000"]
[WhiteElo "2395"]
[BlackElo "2739"]
[Result "0-1"]
[Round "08"]
[TimeControl "180+2"]
[Date "2022.12.20"]
[WhiteClock "0:00:01"]
[BlackClock "0:00:20"]

1. e4 {[%clk 0:03:00]}  e6 {[%clk 0:02:59]} 2. d4 {[%clk 0:02:59]}  d5 {[%clk 0:03:00]} 3. Nd2 {[%clk 0:02:59]}  c5 {[%clk 0:03:00]} 4. c3 {[%clk 0:02:59]}  Nf6 {[%clk 0:03:00]} 5. Bd3 {[%clk 0:02:58]}  Nc6 {[%clk 0:02:59]} 6. Ngf3 {[%clk 0:02:58]}  Be7 {[%clk 0:02:56]} 7. O-O {[%clk 0:02:58]}  h6 {[%clk 0:02:55]} 8. Re1 {[%clk 0:02:51]}  a6 {[%clk 0:02:50]} 9. exd5 {[%clk 0:02:30]}  Nxd5 {[%clk 0:02:44]} 10. dxc5 {[%clk 0:02:28]}  Bxc5 {[%clk 0:02:45]} 11. Ne4 {[%clk 0:02:27]}  Be7 {[%clk 0:02:43]} 12. Qe2 {[%clk 0:02:24]}  O-O {[%clk 0:02:40]} 13. Ng3 {[%clk 0:02:20]}  Qc7 {[%clk 0:02:39]} 14. Nh5 {[%clk 0:02:18]}  f5 {[%clk 0:02:36]} 15. a3 {[%clk 0:02:05]}  Bd7 {[%clk 0:02:31]} 16. c4 {[%clk 0:02:04]}  Nf6 {[%clk 0:02:31]} 17. Nf4 {[%clk 0:01:49]}  e5 {[%clk 0:02:31]} 18. Nd5 {[%clk 0:01:35]}  Nxd5 {[%clk 0:02:29]} 19. cxd5 {[%clk 0:01:35]}  e4 {[%clk 0:02:18]} 20. dxc6 {[%clk 0:01:33]}  exf3 {[%clk 0:02:18]} 21. Qxe7 {[%clk 0:01:25]}  Rae8 {[%clk 0:02:17]} 22. Qb4 {[%clk 0:01:19]}  Bxc6 {[%clk 0:02:11]} 23. Bf4 {[%clk 0:01:17]}  Qd7 {[%clk 0:01:59]} 24. Rxe8 {[%clk 0:01:10]}  Rxe8 {[%clk 0:01:57]} 25. Bc4+ {[%clk 0:01:08]}  Kh7 {[%clk 0:01:57]} 26. Qd2 {[%clk 0:01:05]}  Qe7 {[%clk 0:01:51]} 27. gxf3 {[%clk 0:00:56]}  Bxf3 {[%clk 0:01:48]} 28. Bd3 {[%clk 0:00:54]}  Qf6 {[%clk 0:01:44]} 29. Re1 {[%clk 0:00:46]}  Rd8 {[%clk 0:01:41]} 30. Qc2 {[%clk 0:00:46]}  Rd5 {[%clk 0:01:34]} 31. h3 {[%clk 0:00:45]}  h5 {[%clk 0:01:09]} 32. Kh2 {[%clk 0:00:44]}  h4 {[%clk 0:01:05]} 33. Rg1 {[%clk 0:00:41]}  g6 {[%clk 0:00:45]} 34. Qc7+ {[%clk 0:00:33]}  Qg7 {[%clk 0:00:43]} 35. Qc2 {[%clk 0:00:18]}  Qd4 {[%clk 0:00:41]} 36. Qc7+ {[%clk 0:00:16]}  Rd7 {[%clk 0:00:40]} 37. Qe5 {[%clk 0:00:06]}  Qxe5 {[%clk 0:00:32]} 38. Bxe5 {[%clk 0:00:05]}  Rxd3 {[%clk 0:00:33]} 39. Rc1 {[%clk 0:00:06]}  g5 {[%clk 0:00:27]} 40. Bf6 {[%clk 0:00:05]}  Kg6 {[%clk 0:00:27]} 41. Bc3 {[%clk 0:00:05]}  g4 {[%clk 0:00:25]} 42. Re1 {[%clk 0:00:03]}  Kf7 {[%clk 0:00:24]} 43. Re3 {[%clk 0:00:03]}  Rd1 {[%clk 0:00:24]} 44. Re1 {[%clk 0:00:03]}  Rd6 {[%clk 0:00:22]} 45. Re3 {[%clk 0:00:01]}  f4 {[%clk 0:00:20]} 0-1


[Site "https://www.chess.com"]

[Event "Titled Tuesday Blitz December 20 Early 2022"]
[White "ChessicallyInclined"]
[Black "ErikRonka"]
[WhiteElo "2693"]
[BlackElo "2520"]
[Result "1-0"]
[Round "08"]
[TimeControl "180+2"]
[Date "2022.12.20"]
[WhiteClock "0:00:37"]
[BlackClock "0:00:09"]

1. a3 {[%clk 0:03:00]}  d5 {[%clk 0:02:59]} 2. Nf3 {[%clk 0:03:00]}  Nf6 {[%clk 0:02:59]} 3. e3 {[%clk 0:02:59]}  Bg4 {[%clk 0:02:50]} 4. h3 {[%clk 0:02:57]}  Bh5 {[%clk 0:02:50]} 5. b4 {[%clk 0:02:46]}  Nbd7 {[%clk 0:02:47]} 6. Bb2 {[%clk 0:02:45]}  Bxf3 {[%clk 0:02:43]} 7. Qxf3 {[%clk 0:02:45]}  e5 {[%clk 0:02:44]} 8. c4 {[%clk 0:02:45]}  c6 {[%clk 0:02:43]} 9. cxd5 {[%clk 0:02:44]}  cxd5 {[%clk 0:02:42]} 10. Nc3 {[%clk 0:02:45]}  e4 {[%clk 0:02:36]} 11. Qd1 {[%clk 0:02:41]}  Bd6 {[%clk 0:02:36]} 12. Qb3 {[%clk 0:02:36]}  d4 {[%clk 0:02:29]} 13. Nb5 {[%clk 0:02:34]}  Be5 {[%clk 0:02:25]} 14. Bxd4 {[%clk 0:02:26]}  O-O {[%clk 0:02:24]} 15. Qb2 {[%clk 0:02:16]}  Qe7 {[%clk 0:02:23]} 16. Be2 {[%clk 0:02:11]}  a6 {[%clk 0:02:22]} 17. Bxe5 {[%clk 0:02:11]}  Nxe5 {[%clk 0:02:23]} 18. Nd4 {[%clk 0:02:10]}  Nd5 {[%clk 0:01:45]} 19. O-O {[%clk 0:02:06]}  Kh8 {[%clk 0:01:45]} 20. Rac1 {[%clk 0:02:03]}  f5 {[%clk 0:01:44]} 21. f4 {[%clk 0:01:55]}  exf3 {[%clk 0:01:18]} 22. Nxf3 {[%clk 0:01:54]}  Ng6 {[%clk 0:01:14]} 23. Bc4 {[%clk 0:01:52]}  Nf6 {[%clk 0:01:13]} 24. Nd4 {[%clk 0:01:48]}  f4 {[%clk 0:01:04]} 25. Ne6 {[%clk 0:01:43]}  Rfc8 {[%clk 0:01:01]} 26. Nxf4 {[%clk 0:01:42]}  Ne5 {[%clk 0:01:00]} 27. Be2 {[%clk 0:01:40]}  Rd8 {[%clk 0:01:00]} 28. d4 {[%clk 0:01:31]}  Nc6 {[%clk 0:00:57]} 29. Rf3 {[%clk 0:01:22]}  g5 {[%clk 0:00:35]} 30. Nd3 {[%clk 0:01:19]}  Nd5 {[%clk 0:00:27]} 31. Ne5 {[%clk 0:01:04]}  Nxe5 {[%clk 0:00:22]} 32. dxe5 {[%clk 0:01:05]}  g4 {[%clk 0:00:16]} 33. hxg4 {[%clk 0:01:00]}  Qg5 {[%clk 0:00:15]} 34. e6+ {[%clk 0:00:58]}  Kg8 {[%clk 0:00:15]} 35. Bc4 {[%clk 0:00:52]}  Re8 {[%clk 0:00:13]} 36. Qd4 {[%clk 0:00:47]}  Rad8 {[%clk 0:00:11]} 37. Rf5 {[%clk 0:00:36]}  Qxe3+ {[%clk 0:00:11]} 38. Qxe3 {[%clk 0:00:36]}  Nxe3 {[%clk 0:00:12]} 39. e7+ {[%clk 0:00:36]}  Nxc4 {[%clk 0:00:09]} 40. exd8=Q {[%clk 0:00:37]} 1-0


[Site "https://www.chess.com"]

[Event "Titled Tuesday Blitz December 20 Early 2022"]
[White "Coda, Carlos"]
[Black "Forgacs, Gyula"]
[WhiteFideId "110329"]
[BlackFideId "701203"]
[WhiteElo "1971"]
[BlackElo "2305"]
[Result "1-0"]
[Round "08"]
[TimeControl "180+2"]
[Date "2022.12.20"]
[WhiteClock "0:00:33"]
[BlackClock "0:00:16"]

1. d4 {[%clk 0:02:57]}  Nf6 {[%clk 0:02:59]} 2. Bg5 {[%clk 0:02:55]}  d5 {[%clk 0:02:59]} 3. Nd2 {[%clk 0:02:53]}  c5 {[%clk 0:02:52]} 4. e3 {[%clk 0:02:52]}  cxd4 {[%clk 0:02:52]} 5. exd4 {[%clk 0:02:52]}  Nc6 {[%clk 0:02:52]} 6. Ngf3 {[%clk 0:02:52]}  Bf5 {[%clk 0:02:47]} 7. c3 {[%clk 0:02:49]}  e6 {[%clk 0:02:47]} 8. Be2 {[%clk 0:02:48]}  Be7 {[%clk 0:02:45]} 9. O-O {[%clk 0:02:48]}  O-O {[%clk 0:02:46]} 10. Re1 {[%clk 0:02:47]}  h6 {[%clk 0:02:42]} 11. Bh4 {[%clk 0:02:43]}  Ne4 {[%clk 0:02:38]} 12. Bxe7 {[%clk 0:02:41]}  Qxe7 {[%clk 0:02:39]} 13. Nf1 {[%clk 0:02:40]}  Qf6 {[%clk 0:02:31]} 14. Bd3 {[%clk 0:02:37]}  a6 {[%clk 0:02:26]} 15. Ng3 {[%clk 0:02:36]}  Nxg3 {[%clk 0:02:26]} 16. hxg3 {[%clk 0:02:37]}  b5 {[%clk 0:02:21]} 17. Ne5 {[%clk 0:02:23]}  Nxe5 {[%clk 0:02:20]} 18. Rxe5 {[%clk 0:02:20]}  Qg6 {[%clk 0:02:20]} 19. Bxf5 {[%clk 0:02:19]}  exf5 {[%clk 0:02:16]} 20. Rxd5 {[%clk 0:02:19]}  Rfe8 {[%clk 0:02:12]} 21. Qf3 {[%clk 0:02:17]}  Re4 {[%clk 0:02:05]} 22. Re5 {[%clk 0:01:55]}  Re8 {[%clk 0:01:57]} 23. Rxe8+ {[%clk 0:01:54]}  Rxe8 {[%clk 0:01:58]} 24. Kf1 {[%clk 0:01:38]}  Qe6 {[%clk 0:01:53]} 25. b3 {[%clk 0:01:36]}  g6 {[%clk 0:01:52]} 26. Rd1 {[%clk 0:01:29]}  Qd6 {[%clk 0:01:50]} 27. Qf4 {[%clk 0:01:20]}  Qxf4 {[%clk 0:01:28]} 28. gxf4 {[%clk 0:01:19]}  Rc8 {[%clk 0:01:29]} 29. Rd3 {[%clk 0:01:18]}  Kf8 {[%clk 0:01:27]} 30. Ke2 {[%clk 0:01:18]}  Ke7 {[%clk 0:01:28]} 31. Kd2 {[%clk 0:01:17]}  Kd6 {[%clk 0:01:28]} 32. Re3 {[%clk 0:01:18]}  Rg8 {[%clk 0:01:16]} 33. c4 {[%clk 0:01:03]}  bxc4 {[%clk 0:01:16]} 34. bxc4 {[%clk 0:01:03]}  f6 {[%clk 0:01:14]} 35. Ra3 {[%clk 0:01:02]}  Ra8 {[%clk 0:01:12]} 36. Ra5 {[%clk 0:00:59]}  Kc6 {[%clk 0:01:08]} 37. Kc3 {[%clk 0:00:58]}  Kb6 {[%clk 0:01:07]} 38. Rd5 {[%clk 0:00:57]}  Kc6 {[%clk 0:01:06]} 39. a4 {[%clk 0:00:56]}  Re8 {[%clk 0:01:03]} 40. Ra5 {[%clk 0:00:50]}  Kb6 {[%clk 0:01:03]} 41. Rc5 {[%clk 0:00:50]}  Re2 {[%clk 0:00:52]} 42. a5+ {[%clk 0:00:49]}  Kb7 {[%clk 0:00:53]} 43. d5 {[%clk 0:00:49]}  Re1 {[%clk 0:00:41]} 44. d6 {[%clk 0:00:49]}  Rd1 {[%clk 0:00:41]} 45. Rc7+ {[%clk 0:00:47]}  Kb8 {[%clk 0:00:41]} 46. c5 {[%clk 0:00:46]}  g5 {[%clk 0:00:33]} 47. fxg5 {[%clk 0:00:45]}  fxg5 {[%clk 0:00:34]} 48. Rf7 {[%clk 0:00:45]}  f4 {[%clk 0:00:29]} 49. Kc4 {[%clk 0:00:39]}  h5 {[%clk 0:00:24]} 50. Rf5 {[%clk 0:00:36]}  Kb7 {[%clk 0:00:16]} 51. Rf7+ {[%clk 0:00:34]}  Kc6 {[%clk 0:00:16]} 52. Rc7# {[%clk 0:00:33]} 1-0


[Site "https://www.chess.com"]